[Event "1st Bangalore GM-Open-A 2024"]
[Site "Bangalore"]
[Date "2024.01.19"]
[Round "2.19"]
[White "Panda Sambit"]
[Black "Rajarishi Karthi"]
[Result "1/2-1/2"]
[ECO "D37"]
[WhiteElo "2404"]
[BlackElo "2183"]
[Annotator "RC"]
[PlyCount "112"]
[EventDate "2024.01.20"]
[EventType "swiss"]
[EventCountry "IND"]
[SourceTitle "playchess.com"]
[Source "ChessBase"]
[SourceQuality "1"]
[TimeControl "5400+30"]

1. d4 {[%emt 0:00:08]} d5 {[%emt 0:15:55]} 2. c4 {[%emt 0:00:10]} e6 {[%emt 0:00:34]} 3. Nf3 {[%emt 0:00:15]} Nf6 {[%emt 0:01:24]} 4. Nc3 {[%emt 0:00:08]} Be7 {[%emt 0:01:02]} 5. Bf4 {[%emt 0:00:16]} O-O {[%emt 0:01:10]} 6. e3 {[%emt 0:00:31]} c5 {[%emt 0:02:32]} 7. dxc5 {[%emt 0:00:11]} Qa5 {[%emt 0:02:16]} 8. a3 {[%emt 0:00:08]} dxc4 {[%emt 0:03:25]} 9. Bxc4 {[%emt 0:01:58]} Qxc5 {[%emt 0:02:57]} 10. Qe2 {[%emt 0:23:17]} b6 {[%emt 0:11:27]} 11. O-O {[%emt 0:08:15]} Bb7 {[%emt 0:02:00]} 12. Ne5 {[%emt 0:00:02]} Nbd7 {[%emt 0:04:58]} 13. b4 {[%emt 0:01:58]} Qc8 {[%emt 0:03:54]} 14. Rac1 {[%emt 0:03:39]} Nxe5 {[%emt 0:03:53]} 15. Bxe5 {[%emt 0:00:34]} a6 {[%emt 0:02:17]} 16. Bd3 {[%emt 0:12:14]} Bc6 {[%emt 0:06:58]} 17. Ne4 {[%emt 0:09:07]} Nxe4 {[%emt 0:06:26]} 18. Bxe4 {[%emt 0:01:10]} Bxe4 {[%emt 0:00:10]} 19. Rxc8 {[%emt 0:09:37]} Rfxc8 {[%emt 0:00:07]} 20. Qg4 {[%emt 0:00:01]} Bg6 {[%emt 0:00:15]} 21. Qd4 {[%emt 0:00:01]} f6 {[%emt 0:05:09]} 22. Qd7 {[%emt 0:04:45]} Kf7 {[%emt 0:11:19]} 23. Bd6 {[%emt 0:05:39]} Re8 {[%emt 0:00:11]} 24. Bxe7 {[%emt 0:02:45]} Rxe7 {[%emt 0:00:10]} 25. Qd6 {[%emt 0:01:14]} b5 {[%emt 0:02:17]} 26. Rc1 {[%emt 0:01:25]} Raa7 {[%emt 0:00:31]} 27. h3 {[%emt 0:00:13]} Be4 {[%emt 0:01:48]} 28. Rc5 {[%emt 0:02:44]} Red7 {[%emt 0:02:30]} 29. Qf4 {[%emt 0:00:40]} Bd3 {[%emt 0:00:40]} 30. e4 {[%emt 0:01:30]} a5 {[%emt 0:00:41]} 31. e5 {[%emt 0:02:03]} axb4 {[%emt 0:00:43]} 32. axb4 {[%emt 0:00:20]} f5 {[%emt 0:00:31]} 33. Qh4 {[%emt 0:00:28]} Kg6 {[%emt 0:00:26]} 34. Qg3+ {[%emt 0:00:34]} Kf7 {[%emt 0:00:26]} 35. Qg5 {[%emt 0:00:51]} Ra8 {[%emt 0:00:16]} 36. Qh5+ {[%emt 0:01:44]} Kg8 {[%emt 0:00:07]} 37. Rc6 {[%emt 0:02:54]} Bc4 {[%emt 0:00:21]} 38. Qg5 {[%emt 0:00:27]} Rf8 {[%emt 0:00:37]} 39. Rd6 {[%emt 0:00:39]} Rdf7 {[%emt 0:00:16]} 40. f4 {[%emt 0:01:26]} Bd5 {[%emt 0:00:52]} 41. h4 {[%emt 0:02:04]} Rc7 {[%emt 0:01:19]} 42. h5 {[%emt 0:00:55]} Rc1+ {[%emt 0:01:24]} 43. Kh2 {[%emt 0:00:20]} Rc2 {[%emt 0:00:09]} 44. Rxd5 {[%emt 0:00:55]} exd5 {[%emt 0:00:05]} 45. h6 {[%emt 0:00:07]} Rc7 {[%emt 0:00:16]} 46. hxg7 {[%emt 0:00:12]} Rxg7 {[%emt 0:00:13]} 47. Qh6 {[%emt 0:00:11]} Rg6 {[%emt 0:01:50]} 48. Qh3 {[%emt 0:00:00]} d4 {[%emt 0:01:14]} 49. Qb3+ {[%emt 0:00:34]} Kh8 {[%emt 0:00:17]} 50. Qd5 {[%emt 0:01:19]} Rfg8 {[%emt 0:00:13]} 51. Qxd4 {[%emt 0:02:42]} Rxg2+ {[%emt 0:00:07]} 52. Kh1 {[%emt 0:00:08]} R2g6 {[%emt 0:01:20]} 53. e6+ {[%emt 0:00:05]} R8g7 {[%emt 0:00:12]} 54. Qd8+ {[%emt 0:01:08]} Rg8 {[%emt 0:00:06]} 55. Qd4+ {[%emt 0:00:39]} R8g7 {[%emt 0:00:04]} 56. Qd8+ {[%emt 0:00:12]} Rg8 {[%emt 0:00:05]} 1/2-1/2

[Event "1st Bangalore GM-Open-A 2024"]
[Site "Bangalore"]
[Date "2024.01.19"]
[Round "2.20"]
[White "Dhananjay S"]
[Black "De Silva, L M S T"]
[Result "1-0"]
[ECO "A29"]
[WhiteElo "2151"]
[BlackElo "2398"]
[Annotator "RC"]
[PlyCount "147"]
[EventDate "2024.01.20"]
[EventType "swiss"]
[EventCountry "IND"]
[SourceTitle "playchess.com"]
[Source "ChessBase"]
[SourceQuality "1"]
[TimeControl "5400+30"]

1. c4 {[%emt 0:00:22]} e5 {[%emt 0:00:23]} 2. Nc3 {[%emt 0:02:26]} Nf6 {[%emt 0:00:11]} 3. Nf3 {[%emt 0:00:09]} Nc6 {[%emt 0:00:07]} 4. g3 {[%emt 0:00:03]} d5 {[%emt 0:00:09]} 5. cxd5 {[%emt 0:00:04]} Nxd5 {[%emt 0:00:05]} 6. Bg2 {[%emt 0:00:36]} Nb6 {[%emt 0:00:13]} 7. O-O {[%emt 0:00:05]} Be7 {[%emt 0:00:01]} 8. b3 {[%emt 0:00:04]} O-O {[%emt 0:01:01]} 9. Bb2 {[%emt 0:00:06]} Bg4 {[%emt 0:00:54]} 10. Rc1 {[%emt 0:16:24]} Qd7 {[%emt 0:00:22]} 11. d3 {[%emt 0:01:08]} f6 {[%emt 0:04:24]} 12. Ne4 {[%emt 0:03:07]} Rad8 {[%emt 0:11:25]} 13. Qc2 {[%emt 0:01:37]} Bh3 {[%emt 0:01:29]} 14. Bxh3 {[%emt 0:07:34]} Qxh3 {[%emt 0:00:19]} 15. b4 {[%emt 0:01:08]} Kh8 {[%emt 0:29:48]} 16. b5 {[%emt 0:00:56]} Nb4 {[%emt 0:00:53]} 17. Qb3 {[%emt 0:00:38]} N4d5 {[%emt 0:03:42]} 18. d4 {[%emt 0:05:49]} f5 {[%emt 0:09:39]} 19. Nc5 {[%emt 0:00:19]} e4 {[%emt 0:01:19]} 20. Ne5 {[%emt 0:01:54]} f4 {[%emt 0:11:53]} 21. Nxe4 {[%emt 0:02:59]} Rf5 {[%emt 0:02:42]} 22. gxf4 {[%emt 0:02:28]} Qh4 {[%emt 0:03:25]} 23. Ng3 {[%emt 0:02:25]} Rxf4 {[%emt 0:03:21]} 24. e4 {[%emt 0:01:22]} Rd6 {[%emt 0:04:12]} 25. Nf5 {[%emt 0:02:53]} Qh5 {[%emt 0:03:40]} 26. Rc3 {[%emt 0:08:39]} Rxe4 {[%emt 0:05:09]} 27. Ng3 {[%emt 0:03:36]} Rg6 {[%emt 0:00:53]} 28. Kh1 {[%emt 0:03:09]} Qh3 {[%emt 0:00:04]} 29. Nxg6+ {[%emt 0:16:14]} hxg6 {[%emt 0:00:01]} 30. Rc2 {[%emt 0:03:12]} Rh4 {[%emt 0:00:19]} 31. f4 {[%emt 0:02:33]} Bd6 {[%emt 0:00:01]} 32. Bc1 {[%emt 0:04:03]} Nxf4 {[%emt 0:00:26]} 33. Bxf4 {[%emt 0:00:44]} Bxf4 {[%emt 0:00:06]} 34. Rg2 {[%emt 0:00:40]} Rg4 {[%emt 0:01:52]} 35. Qe6 {[%emt 0:04:06]} Bd6 {[%emt 0:00:07]} 36. Rf3 {[%emt 0:00:26]} Kh7 {[%emt 0:02:04]} 37. Kg1 {[%emt 0:02:00]} Bb4 {[%emt 0:01:43]} 38. Re3 {[%emt 0:01:05]} Bd6 {[%emt 0:00:34]} 39. Re4 {[%emt 0:00:35]} Bf4 {[%emt 0:00:20]} 40. Rxf4 {[%emt 0:01:45]} Rxg3 {[%emt 0:00:01]} 41. Qxh3+ {[%emt 0:00:42]} Rxh3 {[%emt 0:00:01]} 42. Rfg4 {[%emt 0:00:08]} Rf3 {[%emt 0:01:17]} 43. Rf2 {[%emt 0:00:58]} Rd3 {[%emt 0:00:53]} 44. Rf8 {[%emt 0:00:11]} Rh3 {[%emt 0:00:31]} 45. Kg2 {[%emt 0:00:26]} Rh5 {[%emt 0:00:06]} 46. Kg3 {[%emt 0:00:16]} Nd7 {[%emt 0:00:49]} 47. Rf1 {[%emt 0:01:18]} Kg8 {[%emt 0:00:28]} 48. a4 {[%emt 0:00:31]} Rd5 {[%emt 0:00:11]} 49. Rxg6 {[%emt 0:00:15]} Rxd4 {[%emt 0:00:06]} 50. Rg4 {[%emt 0:00:17]} Rd3+ {[%emt 0:00:10]} 51. Kg2 {[%emt 0:00:08]} c6 {[%emt 0:00:47]} 52. bxc6 {[%emt 0:00:23]} bxc6 {[%emt 0:00:01]} 53. h4 {[%emt 0:00:22]} c5 {[%emt 0:00:27]} 54. h5 {[%emt 0:00:07]} Rd6 {[%emt 0:00:18]} 55. Rg6 {[%emt 0:00:15]} Nf6 {[%emt 0:01:24]} 56. h6 {[%emt 0:01:23]} Ne8 {[%emt 0:01:01]} 57. Rxd6 {[%emt 0:00:48]} Nxd6 {[%emt 0:00:01]} 58. Rd1 {[%emt 0:00:37]} Nf7 {[%emt 0:00:43]} 59. hxg7 {[%emt 0:00:09]} Kxg7 {[%emt 0:00:05]} 60. Rd7 {[%emt 0:00:04]} a6 {[%emt 0:01:12]} 61. Kf3 {[%emt 0:00:37]} Kf6 {[%emt 0:00:18]} 62. Ra7 {[%emt 0:00:54]} Nd6 {[%emt 0:00:24]} 63. Rxa6 {[%emt 0:00:41]} Ke5 {[%emt 0:00:02]} 64. Ke3 {[%emt 0:00:28]} Kd5 {[%emt 0:00:12]} 65. Kd3 {[%emt 0:00:21]} Ne4 {[%emt 0:00:24]} 66. Rh6 {[%emt 0:00:37]} c4+ {[%emt 0:00:29]} 67. Kc2 {[%emt 0:00:04]} Kc5 {[%emt 0:01:23]} 68. a5 {[%emt 0:00:05]} Nd6 {[%emt 0:00:33]} 69. a6 {[%emt 0:00:32]} Nc8 {[%emt 0:00:06]} 70. Rh8 {[%emt 0:00:03]} Na7 {[%emt 0:00:19]} 71. Rb8 {[%emt 0:00:03]} Kc6 {[%emt 0:01:24]} 72. Kc3 {[%emt 0:00:04]} Kc5 {[%emt 0:00:23]} 73. Rb7 {[%emt 0:00:03]} Nb5+ {[%emt 0:00:08]} 74. Rxb5+ {[%emt 0:04:17]} 1-0

[Event "1st Bangalore GM-Open-A 2024"]
[Site "Bangalore"]
[Date "2024.01.19"]
[Round "2.21"]
[White "Luong Phuong Hanh"]
[Black "Ritviz, Parab"]
[Result "1/2-1/2"]
[ECO "D05"]
[WhiteElo "2102"]
[BlackElo "2391"]
[Annotator "RC"]
[PlyCount "126"]
[EventDate "2024.01.20"]
[EventType "swiss"]
[EventCountry "IND"]
[SourceTitle "playchess.com"]
[Source "ChessBase"]
[SourceQuality "1"]
[TimeControl "5400+30"]

1. d4 {[%emt 0:00:09]} Nf6 {[%emt 0:00:25]} 2. Nf3 {[%emt 0:00:07]} e6 {[%emt 0:00:10]} 3. e3 {[%emt 0:00:05]} d5 {[%emt 0:00:24]} 4. Bd3 {[%emt 0:00:08]} Nbd7 {[%emt 0:03:57]} 5. O-O {[%emt 0:00:17]} c5 {[%emt 0:00:59]} 6. b3 {[%emt 0:00:15]} Be7 {[%emt 0:06:24]} 7. Bb2 {[%emt 0:00:15]} b6 {[%emt 0:00:26]} 8. Ne5 {[%emt 0:03:00]} Nxe5 {[%emt 0:19:33]} 9. dxe5 {[%emt 0:00:11]} Nd7 {[%emt 0:00:07]} 10. f4 {[%emt 0:00:46]} Qc7 {[%emt 0:02:51]} 11. c4 {[%emt 0:11:31]} Bb7 {[%emt 0:12:08]} 12. Nc3 {[%emt 0:01:03]} dxc4 {[%emt 0:01:27]} 13. bxc4 {[%emt 0:00:16]} Rd8 {[%emt 0:01:24]} 14. Qc2 {[%emt 0:10:12]} h6 {[%emt 0:04:25]} 15. Bh7 {[%emt 0:12:22]} Nf8 {[%emt 0:14:15]} 16. Be4 {[%emt 0:00:19]} Bxe4 {[%emt 0:11:44]} 17. Qxe4 {[%emt 0:01:03]} Ng6 {[%emt 0:01:34]} 18. f5 {[%emt 0:02:14]} exf5 {[%emt 0:00:10]} 19. Qxf5 {[%emt 0:00:27]} O-O {[%emt 0:01:12]} 20. e6 {[%emt 0:00:10]} Bf6 {[%emt 0:13:15]} 21. Nb5 {[%emt 0:02:28]} Qe7 {[%emt 0:00:01]} 22. Bxf6 {[%emt 0:00:22]} gxf6 {[%emt 0:00:03]} 23. exf7+ {[%emt 0:01:15]} Kxf7 {[%emt 0:00:49]} 24. Qh3 {[%emt 0:01:21]} Rd3 {[%emt 0:02:49]} 25. Rf3 {[%emt 0:00:23]} Kg7 {[%emt 0:01:35]} 26. Rg3 {[%emt 0:00:38]} f5 {[%emt 0:00:07]} 27. Rf1 {[%emt 0:00:32]} a6 {[%emt 0:00:24]} 28. Qh5 {[%emt 0:01:19]} Rf6 {[%emt 0:00:17]} 29. Qe2 {[%emt 0:00:46]} Qe4 {[%emt 0:01:19]} 30. Rf4 {[%emt 0:02:38]} Rxe3 {[%emt 0:00:34]} 31. Rxe4 {[%emt 0:00:30]} Rxe4 {[%emt 0:00:10]} 32. Qd2 {[%emt 0:00:32]} axb5 {[%emt 0:00:10]} 33. Qd7+ {[%emt 0:00:35]} Rf7 {[%emt 0:00:46]} 34. Qc6 {[%emt 0:02:51]} Rf6 {[%emt 0:00:05]} 35. Qc7+ {[%emt 0:00:24]} Kf8 {[%emt 0:00:03]} 36. Qh7 {[%emt 0:01:35]} Re1+ {[%emt 0:01:42]} 37. Kf2 {[%emt 0:00:02]} Re7 {[%emt 0:00:41]} 38. Qxh6+ {[%emt 0:00:30]} Kf7 {[%emt 0:00:01]} 39. cxb5 {[%emt 0:01:07]} Ne5 {[%emt 0:00:56]} 40. Rg7+ {[%emt 0:01:01]} Ke6 {[%emt 0:00:03]} 41. Rxe7+ {[%emt 0:00:12]} Kxe7 {[%emt 0:00:02]} 42. Qg7+ {[%emt 0:00:39]} Nf7 {[%emt 0:01:24]} 43. Qg3 {[%emt 0:00:20]} Nd6 {[%emt 0:00:06]} 44. Kg1 {[%emt 0:01:29]} Nxb5 {[%emt 0:00:24]} 45. Qe5+ {[%emt 0:01:04]} Kf7 {[%emt 0:00:12]} 46. Qd5+ {[%emt 0:00:10]} Ke8 {[%emt 0:01:12]} 47. Qg8+ {[%emt 0:00:58]} Ke7 {[%emt 0:00:25]} 48. Qg7+ {[%emt 0:01:28]} Ke6 {[%emt 0:00:32]} 49. h4 {[%emt 0:00:35]} Nd6 {[%emt 0:00:18]} 50. Qc7 {[%emt 0:00:10]} c4 {[%emt 0:00:28]} 51. Qxb6 {[%emt 0:00:06]} Kd5 {[%emt 0:00:05]} 52. h5 {[%emt 0:00:23]} Ne4 {[%emt 0:00:03]} 53. Qd8+ {[%emt 0:03:08]} Rd6 {[%emt 0:01:02]} 54. Qg8+ {[%emt 0:02:37]} Kd4 {[%emt 0:00:05]} 55. Qg7+ {[%emt 0:00:06]} Kd3 {[%emt 0:00:36]} 56. h6 {[%emt 0:00:14]} c3 {[%emt 0:00:07]} 57. h7 {[%emt 0:00:16]} c2 {[%emt 0:00:04]} 58. Qb2 {[%emt 0:03:11]} Rh6 {[%emt 0:00:30]} 59. Qb5+ {[%emt 0:00:54]} Kd2 {[%emt 0:01:37]} 60. Qd5+ {[%emt 0:00:39]} Ke2 {[%emt 0:01:17]} 61. Qc4+ {[%emt 0:00:31]} Kd2 {[%emt 0:00:07]} 62. Qd4+ {[%emt 0:02:44]} Ke2 {[%emt 0:00:07]} 63. Qc4+ {[%emt 0:00:37]} Kd2 {[%emt 0:00:07]} 1/2-1/2

[Event "1st Bangalore GM-Open-A 2024"]
[Site "Bangalore"]
[Date "2024.01.19"]
[Round "2.22"]
[White "Thilakarathne, G M H"]
[Black "Aakash Sharadchandra, Dalvi"]
[Result "0-1"]
[ECO "B52"]
[WhiteElo "2391"]
[BlackElo "2180"]
[Annotator "RC"]
[PlyCount "84"]
[EventDate "2024.01.20"]
[EventType "swiss"]
[EventCountry "IND"]
[SourceTitle "playchess.com"]
[Source "ChessBase"]
[SourceQuality "1"]
[TimeControl "5400+30"]

1. e4 {[%emt 0:05:16]} c5 {[%emt 0:02:09]} 2. Nf3 {[%emt 0:00:08]} d6 {[%emt 0:00:07]} 3. Bb5+ {[%emt 0:00:03]} Bd7 {[%emt 0:00:15]} 4. c4 {[%emt 0:00:05]} Nf6 {[%emt 0:01:52]} 5. Nc3 {[%emt 0:01:46]} g6 {[%emt 0:00:55]} 6. d4 {[%emt 0:16:47]} cxd4 {[%emt 0:04:48]} 7. Qxd4 {[%emt 0:00:18]} Bxb5 {[%emt 0:03:46]} 8. cxb5 {[%emt 0:03:30]} Bg7 {[%emt 0:00:50]} 9. O-O {[%emt 0:12:55]} O-O {[%emt 0:00:23]} 10. a4 {[%emt 0:08:26]} Nbd7 {[%emt 0:02:45]} 11. Qe3 {[%emt 0:21:28]} Qc7 {[%emt 0:22:40]} 12. a5 {[%emt 0:03:17]} a6 {[%emt 0:01:10]} 13. b6 {[%emt 0:00:45]} Qc5 {[%emt 0:01:00]} 14. h3 {[%emt 0:07:46]} Rac8 {[%emt 0:01:33]} 15. Ra3 {[%emt 0:01:30]} Qh5 {[%emt 0:22:56]} 16. Bd2 {[%emt 0:06:03]} Ne5 {[%emt 0:02:09]} 17. Nxe5 {[%emt 0:01:58]} Qxe5 {[%emt 0:00:03]} 18. Qd3 {[%emt 0:04:13]} Rfd8 {[%emt 0:01:30]} 19. b4 {[%emt 0:01:48]} d5 {[%emt 0:01:12]} 20. f4 {[%emt 0:00:39]} Qe6 {[%emt 0:00:04]} 21. e5 {[%emt 0:00:40]} Ne4 {[%emt 0:01:40]} 22. Ne2 {[%emt 0:00:31]} Qd7 {[%emt 0:02:48]} 23. Nd4 {[%emt 0:00:19]} e6 {[%emt 0:00:20]} 24. Be1 {[%emt 0:00:55]} Rc4 {[%emt 0:00:35]} 25. Rb3 {[%emt 0:01:09]} Qa4 {[%emt 0:00:44]} 26. Rb1 {[%emt 0:00:14]} Rdc8 {[%emt 0:00:19]} 27. Qd1 {[%emt 0:00:49]} Qxd1 {[%emt 0:00:43]} 28. Rxd1 {[%emt 0:00:01]} Bf8 {[%emt 0:00:06]} 29. Kh2 {[%emt 0:00:57]} Bxb4 {[%emt 0:00:10]} 30. Bxb4 {[%emt 0:00:29]} Rxb4 {[%emt 0:00:02]} 31. Ne2 {[%emt 0:00:14]} Rb2 {[%emt 0:00:33]} 32. Ng3 {[%emt 0:00:19]} Rcc2 {[%emt 0:00:39]} 33. Rg1 {[%emt 0:00:01]} Nd2 {[%emt 0:01:40]} 34. Kh1 {[%emt 0:00:13]} Nc4 {[%emt 0:01:03]} 35. Rc1 {[%emt 0:00:11]} Nxa5 {[%emt 0:00:18]} 36. Rxc2 {[%emt 0:00:10]} Rxc2 {[%emt 0:00:03]} 37. Rb1 {[%emt 0:00:59]} Nc4 {[%emt 0:00:10]} 38. Nf1 {[%emt 0:00:13]} a5 {[%emt 0:00:47]} 39. Rb5 {[%emt 0:00:13]} Rc1 {[%emt 0:00:16]} 40. Kg1 {[%emt 0:00:10]} Nd2 {[%emt 0:00:27]} 41. Rxa5 {[%emt 0:00:07]} Rxf1+ {[%emt 0:00:07]} 42. Kh2 {[%emt 0:00:02]} Rb1 {[%emt 0:00:06]} 0-1

[Event "1st Bangalore GM-Open-A 2024"]
[Site "Bangalore"]
[Date "2024.01.19"]
[Round "2.23"]
[White "Subhayan Kundu"]
[Black "Sarwat, Walaa"]
[Result "0-1"]
[ECO "C54"]
[WhiteElo "2385"]
[BlackElo "2175"]
[Annotator "RC"]
[PlyCount "54"]
[EventDate "2024.01.20"]
[EventType "swiss"]
[EventCountry "IND"]
[SourceTitle "playchess.com"]
[Source "ChessBase"]
[SourceQuality "1"]
[TimeControl "5400+30"]

1. e4 {[%emt 0:07:37]} e5 {[%emt 0:00:10]} 2. Nf3 {[%emt 0:00:24]} Nc6 {[%emt 0:00:11]} 3. Bc4 {[%emt 0:00:12]} Bc5 {[%emt 0:00:30]} 4. O-O {[%emt 0:00:35]} Nf6 {[%emt 0:00:22]} 5. d3 {[%emt 0:00:08]} d6 {[%emt 0:00:45]} 6. c3 {[%emt 0:01:06]} h6 {[%emt 0:00:49]} 7. Re1 {[%emt 0:00:40]} O-O {[%emt 0:01:41]} 8. h3 {[%emt 0:02:10]} a6 {[%emt 0:01:16]} 9. a4 {[%emt 0:00:38]} Ba7 {[%emt 0:00:53]} 10. Nbd2 {[%emt 0:00:18]} Be6 {[%emt 0:02:37]} 11. Bxe6 {[%emt 0:00:33]} fxe6 {[%emt 0:00:15]} 12. b4 {[%emt 0:00:13]} Nh5 {[%emt 0:01:02]} 13. Nf1 {[%emt 0:02:24]} Nf4 {[%emt 0:06:02]} 14. Ra2 {[%emt 0:00:12]} Qf6 {[%emt 0:00:52]} 15. Kh2 {[%emt 0:02:17]} g5 {[%emt 0:04:36]} 16. Ng3 {[%emt 0:08:02]} Ne7 {[%emt 0:06:25]} 17. Be3 {[%emt 0:06:02]} Neg6 {[%emt 0:00:45]} 18. d4 {[%emt 0:06:13]} Nxg2 {[%emt 0:03:42]} 19. Kxg2 {[%emt 0:05:00]} Qxf3+ {[%emt 0:00:23]} 20. Qxf3 {[%emt 0:00:01]} Nh4+ {[%emt 0:00:18]} 21. Kf1 {[%emt 0:00:10]} Nxf3 {[%emt 0:03:28]} 22. Rd1 {[%emt 0:00:08]} Rf7 {[%emt 0:01:58]} 23. Ke2 {[%emt 0:02:07]} Raf8 {[%emt 0:01:07]} 24. d5 {[%emt 0:01:59]} Bxe3 {[%emt 0:05:10]} 25. dxe6 {[%emt 0:02:42]} Ng1+ {[%emt 0:02:10]} 26. Kd3 {[%emt 0:03:16]} Rxf2 {[%emt 0:01:07]} 27. Rxg1 {[%emt 0:00:12]} R2f3 {[%emt 0:05:13]} 0-1

[Event "1st Bangalore GM-Open-A 2024"]
[Site "Bangalore"]
[Date "2024.01.19"]
[Round "2.24"]
[White "Shadhursshaan R"]
[Black "Tologon tegin, Semetei"]
[Result "0-1"]
[ECO "E16"]
[WhiteElo "2058"]
[BlackElo "2384"]
[Annotator "RC"]
[PlyCount "140"]
[EventDate "2024.01.20"]
[EventType "swiss"]
[EventCountry "IND"]
[SourceTitle "playchess.com"]
[Source "ChessBase"]
[SourceQuality "1"]
[TimeControl "5400+30"]

1. d4 {[%emt 0:00:03]} Nf6 {[%emt 0:00:36]} 2. c4 {[%emt 0:00:03]} e6 {[%emt 0:00:08]} 3. Nf3 {[%emt 0:00:06]} Bb4+ {[%emt 0:01:06]} 4. Nbd2 {[%emt 0:00:08]} O-O {[%emt 0:05:37]} 5. g3 {[%emt 0:00:48]} d5 {[%emt 0:00:23]} 6. Qc2 {[%emt 0:01:58]} b6 {[%emt 0:04:54]} 7. Bg2 {[%emt 0:00:45]} Bb7 {[%emt 0:00:12]} 8. O-O {[%emt 0:01:47]} Nbd7 {[%emt 0:02:02]} 9. a3 {[%emt 0:04:54]} Bd6 {[%emt 0:03:09]} 10. e4 {[%emt 0:03:53]} Nxe4 {[%emt 0:05:25]} 11. Nxe4 {[%emt 0:00:11]} dxe4 {[%emt 0:00:03]} 12. Ng5 {[%emt 0:00:14]} Nf6 {[%emt 0:00:08]} 13. Nxe4 {[%emt 0:00:19]} Nxe4 {[%emt 0:00:03]} 14. Bxe4 {[%emt 0:00:07]} Bxe4 {[%emt 0:00:02]} 15. Qxe4 {[%emt 0:00:08]} c5 {[%emt 0:00:18]} 16. dxc5 {[%emt 0:05:10]} bxc5 {[%emt 0:01:54]} 17. Be3 {[%emt 0:01:38]} Qc7 {[%emt 0:03:50]} 18. Rab1 {[%emt 0:01:29]} a5 {[%emt 0:04:11]} 19. b4 {[%emt 0:01:11]} axb4 {[%emt 0:00:49]} 20. axb4 {[%emt 0:00:02]} cxb4 {[%emt 0:00:16]} 21. c5 {[%emt 0:00:14]} Bxc5 {[%emt 0:09:12]} 22. Rfc1 {[%emt 0:03:10]} Ra5 {[%emt 0:00:11]} 23. Rxb4 {[%emt 0:03:36]} Qd6 {[%emt 0:01:53]} 24. Bxc5 {[%emt 0:05:16]} Rxc5 {[%emt 0:00:04]} 25. Rxc5 {[%emt 0:02:47]} Qxc5 {[%emt 0:00:06]} 26. Qb1 {[%emt 0:01:00]} Rc8 {[%emt 0:05:11]} 27. Rb8 {[%emt 0:01:01]} h5 {[%emt 0:00:24]} 28. Rxc8+ {[%emt 0:00:20]} Qxc8 {[%emt 0:00:04]} 29. h4 {[%emt 0:00:10]} g6 {[%emt 0:00:26]} 30. Qb2 {[%emt 0:00:13]} Qc5 {[%emt 0:00:14]} 31. Qf6 {[%emt 0:00:51]} Qd5 {[%emt 0:00:34]} 32. f4 {[%emt 0:02:29]} Qf3 {[%emt 0:00:27]} 33. Kh2 {[%emt 0:00:06]} Qf2+ {[%emt 0:00:04]} 34. Kh3 {[%emt 0:00:05]} Qg1 {[%emt 0:00:10]} 35. Qd8+ {[%emt 0:00:12]} Kg7 {[%emt 0:06:59]} 36. Qa8 {[%emt 0:00:08]} Qf1+ {[%emt 0:00:08]} 37. Kh2 {[%emt 0:00:17]} Qe2+ {[%emt 0:00:03]} 38. Kh3 {[%emt 0:00:47]} Qd1 {[%emt 0:00:07]} 39. Kh2 {[%emt 0:02:40]} Kf6 {[%emt 0:01:15]} 40. Qb7 {[%emt 0:01:20]} Qc2+ {[%emt 0:00:35]} 41. Kh3 {[%emt 0:00:32]} Qf5+ {[%emt 0:00:04]} 42. Kh2 {[%emt 0:00:05]} Qd5 {[%emt 0:00:05]} 43. Qc7 {[%emt 0:00:31]} Qe4 {[%emt 0:01:42]} 44. Qd8+ {[%emt 0:00:50]} Kg7 {[%emt 0:00:02]} 45. Qb8 {[%emt 0:02:03]} Qe2+ {[%emt 0:00:43]} 46. Kh3 {[%emt 0:00:02]} Qf1+ {[%emt 0:08:45]} 47. Kh2 {[%emt 0:00:10]} Qa1 {[%emt 0:00:02]} 48. Kg2 {[%emt 0:00:36]} Qa2+ {[%emt 0:00:59]} 49. Kh3 {[%emt 0:00:36]} Qd5 {[%emt 0:00:04]} 50. Kh2 {[%emt 0:00:27]} Kf6 {[%emt 0:01:30]} 51. Qc7 {[%emt 0:00:14]} Qd4 {[%emt 0:02:05]} 52. Kh3 {[%emt 0:00:58]} Qa1 {[%emt 0:02:42]} 53. Qd8+ {[%emt 0:01:14]} Kg7 {[%emt 0:03:41]} 54. Kh2 {[%emt 0:00:11]} Qa2+ {[%emt 0:00:10]} 55. Kg1 {[%emt 0:00:18]} Qb2 {[%emt 0:05:50]} 56. Kf1 {[%emt 0:01:39]} Qb5+ {[%emt 0:03:20]} 57. Kg1 {[%emt 0:00:18]} Qd5 {[%emt 0:19:20]} 58. Qc7 {[%emt 0:01:00]} Qd2 {[%emt 0:00:03]} 59. Qe5+ {[%emt 0:00:21]} Kf8 {[%emt 0:00:01]} 60. Qb8+ {[%emt 0:01:02]} Ke7 {[%emt 0:00:03]} 61. Qc7+ {[%emt 0:00:53]} Qd7 {[%emt 0:00:04]} 62. Qc5+ {[%emt 0:00:28]} Qd6 {[%emt 0:00:05]} 63. Qa7+ {[%emt 0:00:19]} Kf6 {[%emt 0:00:13]} 64. Kg2 {[%emt 0:00:36]} Qc6+ {[%emt 0:00:32]} 65. Kh2 {[%emt 0:00:17]} Qc2+ {[%emt 0:00:33]} 66. Kh3 {[%emt 0:00:25]} Qe4 {[%emt 0:00:10]} 67. Kh2 {[%emt 0:00:36]} Kf5 {[%emt 0:00:34]} 68. Qxf7+ {[%emt 0:03:21]} Kg4 {[%emt 0:00:01]} 69. Qf6 {[%emt 0:02:10]} Qe2+ {[%emt 0:00:09]} 70. Kg1 {[%emt 0:00:08]} Kh3 {[%emt 0:00:55]} 0-1

[Event "1st Bangalore GM-Open-A 2024"]
[Site "Bangalore"]
[Date "2024.01.19"]
[Round "2.25"]
[White "Ayush Sharma"]
[Black "Aquino, Jethro Dino"]
[Result "0-1"]
[ECO "D78"]
[WhiteElo "2378"]
[BlackElo "2166"]
[Annotator "RC"]
[PlyCount "40"]
[EventDate "2024.01.20"]
[EventType "swiss"]
[EventCountry "IND"]
[SourceTitle "playchess.com"]
[Source "ChessBase"]
[SourceQuality "1"]
[TimeControl "5400+30"]

1. Nf3 {[%emt 0:00:09]} Nf6 {[%emt 0:00:33]} 2. g3 {[%emt 0:00:14]} g6 {[%emt 0:00:24]} 3. c4 {[%emt 0:00:10]} c6 {[%emt 0:02:02]} 4. Bg2 {[%emt 0:00:36]} Bg7 {[%emt 0:00:06]} 5. O-O {[%emt 0:00:06]} O-O {[%emt 0:00:04]} 6. d4 {[%emt 0:01:13]} d5 {[%emt 0:00:07]} 7. Nc3 {[%emt 0:05:34]} dxc4 {[%emt 0:00:28]} 8. a4 {[%emt 0:08:55]} Nd5 {[%emt 0:00:13]} 9. a5 {[%emt 0:04:13]} Na6 {[%emt 0:02:50]} 10. Qa4 {[%emt 0:04:30]} Ndb4 {[%emt 0:02:28]} 11. Rd1 {[%emt 0:12:02]} b5 {[%emt 0:03:01]} 12. axb6 {[%emt 0:00:15]} axb6 {[%emt 0:00:09]} 13. Ne5 {[%emt 0:02:40]} Bxe5 {[%emt 0:09:47]} 14. dxe5 {[%emt 0:00:04]} Qc7 {[%emt 0:00:04]} 15. Bh6 {[%emt 0:04:24]} Re8 {[%emt 0:01:36]} 16. f4 {[%emt 0:13:48]} Bf5 {[%emt 0:07:43]} 17. Rd2 {[%emt 0:00:34]} Bc2 {[%emt 0:11:51]} 18. Qa3 {[%emt 0:03:46]} Bb3 {[%emt 0:01:53]} 19. Rc1 {[%emt 0:00:25]} b5 {[%emt 0:03:53]} 20. Ne4 {[%emt 0:02:26]} Na2 {[%emt 0:02:45]} 0-1